Cogmind - Beta 13 @@@ ROGUE MODE // 2024.04.28 @ 04:44:11 Player: Aeon PSR Result: Destroyed by L-41 Fighter with Axe Performance ------------- Evolutions (3) 1500 Regions Visited (8) 1600 Robots Destroyed (48) 240 Value Destroyed (1573) 1573 Prototype IDs (2) 40 Alien Tech Used (0) 0 Bonus (300) 300 TOTAL SCORE: 5253 Bonus ------- Aligned with FarCom 300 Cogmind --------- Core Integrity 0/700 Matter 16/300 Energy 325/325 System Corruption 25% Temperature Cool (0) Movement Core (300) Ox5 Location -7/Factory Parts ------- > --- POWER (1) -------- Antimatter Reactor > --- PROPULSION (3) --- (None) > --- UTILITY (6) ------ Improved Signal Interpreter > --- WEAPON (3) ------- (None) > --- INVENTORY (5) ---- Micro Nuclear Core Melee Analysis Suite Improved Weapon Shielding Peak State ------------ > --- POWER ------------ Micro Nuclear Core > --- PROPULSION ------- Armored Wheel Armored Huge Wheel > --- UTILITY ---------- Compact Battery Improved Signal Interpreter Improved Terrain Scan Processor Advanced ECM Suite Improved Light Armor Plating Improved Shield Generator > --- WEAPON ----------- Minigun Minigun Heavy Rocket Launcher > --- INVENTORY -------- Micro Nuclear Core Wheel Compact Wheel Compact Battery Melee Analysis Suite [Rating: 45] Favorites ----------- Power Micro Nuclear Core Engine Light Ion Engine Power Core Micro Nuclear Core Reactor Antimatter Reactor Propulsion Compact Wheel Wheel Compact Wheel Utility Compact Battery Device Improved Shield Generator Storage Compact Battery Processor Improved Signal Interpreter Protection Core Shielding Weapon Minigun Energy Gun Medium Laser Energy Cannon Improved EM Pulse Cannon Ballistic Gun Minigun Launcher Heavy Rocket Launcher Special Weapon Mining Laser Build | -11 -10 -10 -10 -9 -8 -7 -7 -7 ------- Run | Yrd Mat Min Exi Min Mat Fac Was Fac Slots Evolved 6 | . . . . . 4 2 . . Power . | . . . . . . . . . Propulsion 1 | . . . . . . 1 . . Utility 4 | . . . . . 4 . . . Weapon 1 | . . . . . . 1 . . Parts Attached 67 | 2 4 5 2 5 21 23 2 3 Power 10 | . 1 1 . 1 2 4 . 1 Engine 4 | . 1 1 . 1 . 1 . . Core 5 | . . . . . 2 3 . . Reactor 1 | . . . . . . . . 1 Propulsion 16 | 2 . 1 . 1 6 4 2 . Treads . | . . . . . . . . . Leg . | . . . . . . . . . Wheel 16 | 2 . 1 . 1 6 4 2 . Hover . | . . . . . . . . . Flight . | . . . . . . . . . Utility 23 | . 2 . 2 . 7 12 . . Device 8 | . . . 1 . 3 4 . . Storage 5 | . 1 . . . . 4 . . Processor 4 | . . . . . 3 1 . . Hackware . | . . . . . . . . . Protection 6 | . 1 . 1 . 1 3 . . Artifact . | . . . . . . . . . Weapon 18 | . 1 3 . 3 6 3 . 2 Energy Gun 1 | . 1 . . . . . . . Energy Cannon 2 | . . . . . . . . 2 Ballistic Gun 9 | . . 2 . 2 3 2 . . Ballistic Cannon . | . . . . . . . . . Launcher 3 | . . . . . 2 1 . . Special Weapon 3 | . . 1 . 1 1 . . . Impact Weapon . | . . . . . . . . . Slashing Weapon . | . . . . . . . . . Piercing Weapon . | . . . . . . . . . Special Melee Weapon . | . . . . . . . . . Unidentified Prototypes 2 | . . . 1 . . 1 . . Parts Lost 31 | . . 2 . 6 6 7 2 8 Power 2 | . . . . 1 . . . 1 Propulsion 8 | . . 1 . 2 1 1 . 3 Utility 10 | . . . . . 3 5 1 1 Weapon 11 | . . 1 . 3 2 1 1 3 Highest Loss Streak 8 | . . 2 . 6 5 3 1 8 To Critical Strikes . | . . . . . . . . . Average Slot Usage (%) 85 | . 75 99 100 79 75 83 71 61 Engine 5 | . 14 14 14 9 2 . . . Core 4 | . . . . . 6 7 7 5 Wheel 20 | . 28 27 28 14 12 16 17 19 Device 5 | . . . . . 15 9 2 . Storage 11 | . 14 14 14 14 5 12 7 5 Processor 6 | . . . . . 8 12 7 7 Protection 9 | . 4 14 13 14 6 5 10 5 Energy Gun 2 | . 14 11 . . . . . . Ballistic Gun 15 | . . 15 28 21 5 15 16 6 Launcher 1 | . . . . . 6 2 . . Special Weapon 1 | . . . . 4 5 . . . Naked Turns . | . . . . . . . . . Heaviest Build 41 | . 13 14 11 11 31 41 41 26 Greatest Support 47 | 32 32 32 32 32 35 47 40 40 Greatest Overweight (x) 5 | . . . . 2 1 1 1 5 Average Overweight (x) . | . . . . . . . . . Largest Inventory Capacity 8 | 5 8 8 8 8 8 5 5 5 Average Capacity 6 | 5 7 8 8 8 6 5 5 5 Most Carried 8 | 4 3 7 8 8 8 5 5 5 Average Carried 4 | 3 1 3 7 5 4 4 3 3 Final Capacity 8 | 5 8 8 8 8 5 5 5 5 Final Carried 8 | 4 2 7 8 3 5 4 3 3 Class Distribution -------------------- 73% | Mutant 15% | Skirmisher 11% | Tank Dominant Class ---------------- Mutant | -10/Materials Mutant | -10/Mines Mutant | -10/Exiles Mutant | -9/Mines Skirmisher | -8/Materials Mutant | -7/Factory Mutant | -7/Waste Skirmisher | -7/Factory Resources | -11 -10 -10 -10 -9 -8 -7 -7 -7 ----------- Run | Yrd Mat Min Exi Min Mat Fac Was Fac Matter Collected 1584 | 220 . 114 . 82 388 780 . . Remotely . | . . . . . . . . . Salvage Created 1782 | . . 154 . 40 362 932 294 . Parts 99 | . . 14 . . 30 49 6 . Haulers Intercepted . | . . . . . . . . . Recyclers Shooed 1 | . . 1 . . . . . . Parts Field Recycled . | . . . . . . . . . Retrieved Matter . | . . . . . . . . . Parts Self-Destructed . | . . . . . . . . . Prevented . | . . . . . . . . . Kills | -11 -10 -10 -10 -9 -8 -7 -7 -7 ------- Run | Yrd Mat Min Exi Min Mat Fac Was Fac Combat Hostiles Destroyed 39 | . . 4 . 4 11 19 1 . Guns 28 | . . 4 . 4 . 19 1 . AOE 11 | . . . . . 11 . . . Classes Destroyed 12 | . . 3 . 1 6 1 1 . Worker 4 | . . . . . 4 . . . Builder 4 | . . . . . 3 1 . . Tunneler 2 | . . 1 . . 1 . . . Recycler 2 | . . 1 . . . 1 . . Watcher 1 | . . . . . 1 . . . Swarmer 10 | . . 4 . . . 6 . . Grunt 17 | . . . . . 9 8 . . Sentry 3 | . . . . . 1 2 . . Hunter 1 | . . . . . 1 . . . Programmer 3 | . . . . . . 3 . . Compactor 1 | . . . . . . . 1 . Assembled 4 | . . . . 4 . . . . Best Kill Streak 7 | . . 3 . 2 7 4 1 . Combat Bots Only 4 | . . 3 . 2 4 4 1 . Max Kills in Single Turn 3 | . . 1 . 1 3 1 1 . Gunslinging . | . . . . . . . . . Exploded 3 | . . . . . 3 . . . Melee . | . . . . . . . . . Uniques/NPCs Destroyed . | . . . . . . . . . Combat | -11 -10 -10 -10 -9 -8 -7 -7 -7 -------- Run | Yrd Mat Min Exi Min Mat Fac Was Fac Hostile Shots Fired 509 | . . 64 . 49 25 271 3 97 Missed 164 | . . 26 . 9 6 84 1 38 Damage Taken 4910 | . . 305 . 558 974 2144 91 838 Core 1132 | . . 44 . 191 191 377 . 329 Absorbed by Shields 386 | . . . . . . 386 . . Redirected to Shielding 147 | . . 8 . 35 7 64 33 . Regen/Repaired (Parts) 139 | . . . . . 28 111 . . Core Remaining (%) 57 | 100 . . . 6 65 . . . Volleys Fired 177 | . 3 21 . 29 32 79 13 . Largest 3 | . 1 2 . 2 2 2 3 . Hottest 150 | . 50 150 . 40 100 50 73 . Shots Fired 319 | . 3 41 . 42 35 157 40 1 Gun 286 | . 3 40 . 42 5 156 40 . Cannon 1 | . . . . . . . . 1 Launcher 15 | . . . . . 14 1 . . Special 17 | . . 1 . . 16 . . . Kinetic 269 | . . 26 . 42 5 156 40 . Thermal 34 | . 3 15 . . 16 . . . Explosive 15 | . . . . . 14 1 . . Electromagnetic 1 | . . . . . . . . 1 Robot Hit Streak 15 | . 1 5 . 11 15 13 6 . Robot Miss Streak 5 | . 1 3 . 2 3 5 2 1 Penetration Max . | . . . . . . . . . Secondary Targets 4 | . . . . 1 . 2 1 . Max Gunslinging Chain 1 | . . . . 1 . 1 1 . Shots Hit Robots 191 | . 1 22 . 30 12 97 29 . Core Hits 104 | . . 10 . 10 32 41 11 . Critical Kills 1 | . . . . . . 1 . . Critical Parts Destroyed 2 | . . . . 1 . 1 . . Critical Strikes 5 | . . . . 1 . 3 1 . Destroy 5 | . . . . 1 . 3 1 . Melee Attacks . | . . . . . . . . . Impact . | . . . . . . . . . Slashing . | . . . . . . . . . Piercing . | . . . . . . . . . Sneak Attacks . | . . . . . . . . . Combat Hostiles . | . . . . . . . . . Follow-up Attacks . | . . . . . . . . . Damage Inflicted 4589 | . 12 199 . 236 1831 1754 557 . Guns 2813 | . 12 199 . 236 55 1754 557 . Cannons . | . . . . . . . . . Explosions 1765 | . . . . . 1765 . . . Melee . | . . . . . . . . . Ramming 11 | . . . . . 11 . . . Kinetic 2739 | . . 137 . 236 55 1754 557 . Thermal 523 | . 12 62 . . 449 . . . Explosive 1316 | . . . . . 1316 . . . Electromagnetic . | . . . . . . . . . Impact . | . . . . . . . . . Slashing . | . . . . . . . . . Piercing . | . . . . . . . . . Highest Corruption 25 | . . . . . 12 1 25 25 Average Corruption 10 | . . . . . 11 1 14 25 Corruption Purged . | . . . . . . . . . Corruption Blocked . | . . . . . . . . . Effects 48 | . . . . . 15 5 13 15 Message Errors 6 | . . . . . 2 2 1 1 Matter Fused 9 | . . . . . 4 1 1 3 Heat Flow Errors 4 | . . . . . . . 1 3 Energy Discharges 3 | . . . . . 1 . . 2 Parts Rejected 3 | . . . . . 1 . 1 1 Parts Fused 1 | . . . . . . 1 . . Data Loss (minor) 6 | . . . . . 2 . 3 1 Data Loss (major) 1 | . . . . . 1 . . . Misfires 3 | . . . . . 1 . 1 1 Alerts 3 | . . . . . . 1 . 2 Misdirections 9 | . . . . . 3 . 5 1 Overload Shots . | . . . . . . . . . Overflow Damage 139 | . . . . . 139 . . . Projectiles . | . . . . . . . . . Explosions 139 | . . . . . 139 . . . Melee . | . . . . . . . . . Knockbacks . | . . . . . . . . . Impact . | . . . . . . . . . Kinetic . | . . . . . . . . . Secondary . | . . . . . . . . . Self-Inflicted Damage 452 | . . . . . 452 . . . Shots 10 | . . . . . 10 . . . Rammed 1 | . . . . . 1 . . . Targets Rammed 1 | . . . . . 1 . . . Kicked . | . . . . . . . . . Crushed . | . . . . . . . . . Highest Temperature 412 | . 30 70 . 55 38 245 412 189 Average Temperature 61 | . 16 25 . 19 6 59 167 73 Received Heat Transfer 978 | . . . . 240 81 570 . 87 Effects 4 | . . . . . . 3 1 . Shutdowns 1 | . . . . . . . 1 . Interference 3 | . . . . . . 3 . . Siege Activations . | . . . . . . . . . Robots Corrupted . | . . . . . . . . . Combat Hostiles . | . . . . . . . . . Parts Fried . | . . . . . . . . . Impact Corruptions . | . . . . . . . . . Robots Melted . | . . . . . . . . . Combat Hostiles . | . . . . . . . . . Parts Melted . | . . . . . . . . . Heat Transferred 472 | . 37 185 . . 250 . . . Parts Sabotaged . | . . . . . . . . . Parts Stolen . | . . . . . . . . . Parts Stripped . | . . . . . . . . . Power Chain Reactions . | . . . . . . . . . Alert | -11 -10 -10 -10 -9 -8 -7 -7 -7 ------- Run | Yrd Mat Min Exi Min Mat Fac Was Fac Peak Influence 388 | . 30 70 . . 388 302 140 118 Initial 176 | . . 11 . . . 176 105 98 Average 78 | . 9 14 . . 105 110 115 96 Maximum Alert Level 1 | . . . . . 1 1 . . Low Security (%) 92 | 100 100 100 . 100 84 88 100 100 Level 1 7 | . . . . . 15 11 . . Level 2 . | . . . . . . . . . Level 3 . | . . . . . . . . . Level 4 . | . . . . . . . . . Level 5 . | . . . . . . . . . High Security . | . . . . . . . . . Max Security . | . . . . . . . . . Squads Dispatched 9 | . 1 . . . 2 4 . 2 Investigation 1 | . . . . . . . . 1 Extermination 3 | . . . . . . 3 . . Reinforcement 5 | . 1 . . . 2 1 . 1 Assault . | . . . . . . . . . Garrison . | . . . . . . . . . Intercept . | . . . . . . . . . Searches Triggered . | . . . . . . . . . Construction Impeded 1 | . . . . . 1 . . . Haulers Reinforced . | . . . . . . . . . Active Scanning Responses . | . . . . . . . . . Cargo Convoy Interrupts . | . . . . . . . . . Stealth | -11 -10 -10 -10 -9 -8 -7 -7 -7 --------- Run | Yrd Mat Min Exi Min Mat Fac Was Fac Distress Signals 1 | . . . . . . 1 . . Communications Jammed . | . . . . . . . . . Distress Signals . | . . . . . . . . . Times Spotted 86 | . 3 12 . 9 16 31 6 9 Peak Tracking Total 13 | . 2 3 . 13 4 6 5 8 Tactical Retreats 9 | . . . . 2 . 6 1 . Traps | -11 -10 -10 -10 -9 -8 -7 -7 -7 ------- Run | Yrd Mat Min Exi Min Mat Fac Was Fac Traps Triggered 2 | . . . . . . 1 . 1 Indirectly . | . . . . . . . . . Trap Hack Attempts . | . . . . . . . . . Triggered . | . . . . . . . . . Disarmed . | . . . . . . . . . Reprogrammed . | . . . . . . . . . Reused . | . . . . . . . . . Traps Extracted . | . . . . . . . . . Installed . | . . . . . . . . . Triggered . | . . . . . . . . . Machines | -11 -10 -10 -10 -9 -8 -7 -7 -7 ---------- Run | Yrd Mat Min Exi Min Mat Fac Was Fac Machines Disabled 6 | . . . . . 5 . . 1 Max in Single Turn 2 | . . . . . 2 . . 1 Machines Repaired . | . . . . . . . . . Machines Dismantled . | . . . . . . . . . Machines Sabotaged . | . . . . . . . . . Overloaded Fab Kills . | . . . . . . . . . Hacking | -11 -10 -10 -10 -9 -8 -7 -7 -7 --------- Run | Yrd Mat Min Exi Min Mat Fac Was Fac Machines Accessed 4 | . . . . . 3 1 . . Terminals . | . . . . . . . . . Fabricators . | . . . . . . . . . Repair Stations 3 | . . . . . 2 1 . . Recycling Units 1 | . . . . . 1 . . . Scanalyzers . | . . . . . . . . . Garrison Access . | . . . . . . . . . Total Hacks 12 | . . . . . 9 3 . . Successful 6 | . . . . . 4 2 . . Failed 6 | . . . . . 5 1 . . Catastrophic . | . . . . . . . . . Database Lockouts . | . . . . . . . . . Manual 1 | . . . 1 . . . . . Terminals . | . . . . . . . . . Fabricators . | . . . . . . . . . Repair Stations 10 | . . . . . 7 3 . . Recycling Units 2 | . . . . . 2 . . . Scanalyzers . | . . . . . . . . . Garrison Access . | . . . . . . . . . Terminal Hacks . | . . . . . . . . . Fabricator Hacks . | . . . . . . . . . Repair Station Hacks 5 | . . . . . 3 2 . . Scan Component 3 | . . . . . 2 1 . . Repair 2 | . . . . . 1 1 . . Recycling Unit Hacks 1 | . . . . . 1 . . . Report Inventory 1 | . . . . . 1 . . . Scanalyzer . | . . . . . . . . . Garrison Access Hacks . | . . . . . . . . . Unauthorized Hacks . | . . . . . . . . . Terminals . | . . . . . . . . . Fabricators . | . . . . . . . . . Repair Stations . | . . . . . . . . . Recycling Units . | . . . . . . . . . Scanalyzers . | . . . . . . . . . Garrison Access . | . . . . . . . . . Data Cores Recovered . | . . . . . . . . . Used . | . . . . . . . . . Hacking Detections 3 | . . . . . 2 1 . . Full Trace Events . | . . . . . . . . . Feedback Events . | . . . . . . . . . Feedback Blocked . | . . . . . . . . . Robot Schematics Acquired . | . . . . . . . . . Robots Built . | . . . . . . . . . Authchips . | . . . . . . . . . Time . | . . . . . . . . . Total Robot Build Rating . | . . . . . . . . . Part Schematics Acquired . | . . . . . . . . . Parts Built . | . . . . . . . . . Authchips . | . . . . . . . . . Time . | . . . . . . . . . Total Part Build Rating . | . . . . . . . . . Parts Repaired 2 | . . . . . 1 1 . . Time 45 | . . . . . 26 19 . . Parts Recycled . | . . . . . . . . . Recycled Matter . | . . . . . . . . . Retrieved Matter . | . . . . . . . . . Retrieved Components . | . . . . . . . . . Parts Scanalyzed . | . . . . . . . . . Part Schematics Acquired . | . . . . . . . . . Parts Damaged . | . . . . . . . . . Bothacking | -11 -10 -10 -10 -9 -8 -7 -7 -7 ------------ Run | Yrd Mat Min Exi Min Mat Fac Was Fac Used RIF Installer . | . . . . . . . . . Robots Hacked . | . . . . . . . . . Non-combat . | . . . . . . . . . Combat . | . . . . . . . . . Robot Hacks Applied . | . . . . . . . . . Relay Couplers Released . | . . . . . . . . . Fabnet Peak Effective % . | . . . . . . . . . Robots Rewired . | . . . . . . . . . Allies Hacked . | . . . . . . . . . Hacks Repelled . | . . . . . . . . . Allies | -11 -10 -10 -10 -9 -8 -7 -7 -7 -------- Run | Yrd Mat Min Exi Min Mat Fac Was Fac Total Allies 1 | . . . . . . . 1 . Largest Group 1 | . . . . . . . 1 . Highest-Rated Group 31 | . . . . . . . 31 . Highest-Rated Ally 31 | . . . . . . . 31 . Total Orders 2 | . . . . . 2 . . . EXPLORE 2 | . . . . . 2 . . . Ally Attacks 4 | . . . . . . . 4 . Total Damage 82 | . . . . . . . 82 . Kills . | . . . . . . . . . Allies Corrupted . | . . . . . . . . . Allies Melted . | . . . . . . . . . Intel | -11 -10 -10 -10 -9 -8 -7 -7 -7 ------- Run | Yrd Mat Min Exi Min Mat Fac Was Fac Robot Analysis Total . | . . . . . . . . . Derelict Logs Recovered 3 | . . 2 . 1 . . . . Drone Launches 2 | . . . . . 2 . . . Drone Recoveries 2 | . . . . . 2 . . . Exploration | -11 -10 -10 -10 -9 -8 -7 -7 -7 ------------- Run | Yrd Mat Min Exi Min Mat Fac Was Fac Turns Passed 5472 | 51 93 1080 815 200 764 1943 235 291 Spaces Moved 3775 | 46 82 518 739 125 521 1278 206 260 Core 37 | 5 . . . 4 . . . 28 Treads . | . . . . . . . . . Legs . | . . . . . . . . . Wheels 3738 | 41 82 518 739 121 521 1278 206 232 Hover . | . . . . . . . . . Flight . | . . . . . . . . . Fastest Speed 50 | 50 100 100 100 100 85 85 86 50 Average Speed 97 | 94 100 100 100 101 99 95 94 95 Slowest Speed 300 | 100 100 100 100 150 115 105 105 300 Overloaded Moves . | . . . . . . . . . Propulsion Burnouts . | . . . . . . . . . Robots Hopped . | . . . . . . . . . Cave-ins Triggered 2 | . . . . . 2 . . . Exploration Rate (%) 43 | 3 23 60 89 22 63 31 88 10 Regions Visited 8 Branch Regions 3 Pre-discovered Areas 1 | . . . . 1 . . . . Known Exits Taken 1 | . . . . . 1 . . . Unknown Exits Taken 5 | 1 1 1 1 1 . . . . Scrap Searched 2 | . . 1 . 1 . . . . Spaces Dug 57 | . . . . . 42 15 . . Terrain Destroyed 268 | . . 1 . . 252 15 . . Melee . | . . . . . . . . . Projectile 17 | . . 1 . . 16 . . . AOE 251 | . . . . . 236 15 . . Terrain Rammed . | . . . . . . . . . Walls Destroyed . | . . . . . . . . . Machines Disabled . | . . . . . . . . . Actions | -11 -10 -10 -10 -9 -8 -7 -7 -7 --------- Run | Yrd Mat Min Exi Min Mat Fac Was Fac Total 5267 | 53 90 1041 814 164 701 1877 224 303 Wait 1176 | . . 488 73 6 106 463 3 37 Move 3767 | 45 81 517 738 124 519 1278 205 260 Hop . | . . . . . . . . . Pick Up 53 | 6 2 9 1 . 13 18 1 3 Fast Attach 13 | . . . . . 7 6 . . Attach 38 | 2 4 3 . 5 6 13 2 3 Detach . | . . . . . . . . . Swap 16 | . . 2 2 . 8 4 . . Drop 25 | . . 1 . . 8 16 . . Fire 177 | . 3 21 . 29 32 79 13 . Melee . | . . . . . . . . . Ram 1 | . . . . . 1 . . . Kick . | . . . . . . . . . Crush . | . . . . . . . . . Escape Stasis 1 | . . . . . 1 . . . Rewire . | . . . . . . . . . Trap . | . . . . . . . . . Miscellaneous . | . . . . . . . . . Route ------- -11/Scrapyard -10/Materials -10/Mines (discovered 2 exits: [*Mat] / *Exi) -10/Exiles (discovered 2 exits: [*Min x2]) -9/Mines -8/Materials -7/Factory -7/Waste -7/Factory History --------- Turn | Location | Event 9 | -11/Scrapyard | Discovered new exit (range 16) 52 | -11/Scrapyard | Entered Materials 88 | -10/Materials | Discovered new exit (range 15) 145 | -10/Materials | Entered Mines 174 | -10/Mines | Discovered new exit (range 8) 185 | -10/Mines | Met a Derelict bent on vengeance 218 | -10/Mines | Learned 2 Materials zone layouts 307 | -10/Mines | Build established: Mutant 1219 | -10/Mines | Deemed a non-threat by the Exiles lab entrance 1220 | -10/Mines | Discovered new exit (range 5) 1225 | -10/Mines | Entered Exiles 1250 | -10/Exiles | Met 8R-AWN 1266 | -10/Exiles | Met EX-HEX 1306 | -10/Exiles | Met EX-DEC 1360 | -10/Exiles | Discovered new exit (range 14) 1445 | -10/Exiles | Visited The Gauntlet 1575 | -10/Exiles | Met EX-BIN 1594 | -10/Exiles | Aligned with FarCom system 1595 | -10/Exiles | Given EX-Vault access code 1619 | -10/Exiles | Opened EX-Vault 1624 | -10/Exiles | Found Prototype Device 1628 | -10/Exiles | Identified Supersonic Drone Bay 1649 | -10/Exiles | Warned to stay clear of 0b10 Research branches 2028 | -10/Exiles | Discovered new exit (range 14) 2040 | -10/Exiles | Left Exiles lab with Supersonic Drone Bay 2040 | -10/Exiles | Entered Mines 2050 | -9/Mines | Assembled infested the area 2052 | -9/Mines | Learned 4 Materials zone layouts 2074 | -9/Mines | Learned location of Storage (-9) 2127 | -9/Mines | Core integrity fell below 50% 2155 | -9/Mines | Core integrity fell below 20% 2183 | -9/Mines | Lost 6 parts (1p2n3w) 2214 | -9/Mines | Discovered new exit (range 7) 2240 | -9/Mines | Entered Materials 2240 | -8/Materials | Evolved 4 slots: Utility x4 2542 | -8/Materials | Build established: Skirmisher 2736 | -8/Materials | Crushed by falling debris 2739 | -8/Materials | Crushed by falling debris 2739 | -8/Materials | System corruption reached 10% 2774 | -8/Materials | Lost 5 parts (1n3u1w) 2821 | -8/Materials | Discovered new exit (range 51) 2845 | -8/Materials | Repaired Com. Wheel 3003 | -8/Materials | Identified exit to Factory 3004 | -8/Materials | Entered Factory 3004 | -7/Factory | Evolved 2 slots: Propulsion x1, Weapon x1 3046 | -7/Factory | Build established: Mutant 3081 | -7/Factory | Discovered new exit (range 8) 3087 | -7/Factory | Identified exit to Lower Caves 3981 | -7/Factory | Build established: Tank 4352 | -7/Factory | Lost 3 parts (2u1w) 4448 | -7/Factory | Repaired Minigun 4634 | -7/Factory | Build established: Mutant 4904 | -7/Factory | Core integrity fell below 50% 4947 | -7/Factory | Sucked down chute 4947 | -7/Factory | Entered Waste 4948 | -7/Waste | Met a frightened Derelict 4955 | -7/Waste | Spotted C-40 Crusher 4960 | -7/Waste | Spotted C-40 Crusher 4962 | -7/Waste | EMP discharged 4962 | -7/Waste | System corruption reached 10% 5003 | -7/Waste | Destroyed C-40 Crusher 5045 | -7/Waste | Spotted C-40 Crusher 5051 | -7/Waste | Crushed by Compactor (0 parts destroyed, 1 dropped) 5062 | -7/Waste | EMP discharged 5069 | -7/Waste | Spotted C-40 Crusher 5105 | -7/Waste | Crushed by Compactor (1 part destroyed, 1 dropped) 5106 | -7/Waste | Spotted C-40 Crusher 5129 | -7/Waste | Spotted C-40 Crusher 5162 | -7/Waste | EMP discharged 5166 | -7/Waste | Discovered new exit (range 15) 5181 | -7/Waste | Identified exit to Factory 5182 | -7/Waste | Entered Factory 5448 | -7/Factory | Core integrity fell below 20% 5473 | -7/Factory | Destroyed by L-41 Fighter with Axe Last Messages --------------- 05411_ ALERT: Hostiles spotted, dispatching reinforcements to Terminal F004. 05411_ O-16 Technician locks terminal. 05412_ System corrupted: Energy discharge (-89). 05412_ Imp. EM Pulse Cannon destroyed. 05420_ Arm. Wheel destroyed. 05427_ Com. Battery destroyed. 05429_ System corrupted: Matter fused (-8). 05431_ Autogun destroyed. 05440_ Triggered Alarm Trap. 05440_ An alarm sounds. 05440_ ALERT: Alarm triggered, dispatching investigation squad. 05441_ Com. Wheel destroyed. 05445_ Imp. EM Pulse Cannon destroyed. 05449_ Power Conduit explodes. 05449_ S-27 Virus destroyed. 05449_ G-47 Trooper destroyed. 05449_ S-27 Virus destroyed. 05457_ System corrupted: Matter fused (-6). Map ----- +----------------------------------------------------+ | | | | | | | | | | | | | | | | | | | | | | | ?????????????????????????????????????????????????? | | ????????????##########???????????????????????????? | | ????????????# #???????????????????????????? | | ????????????# #???????????????????????????? | | ????????????# #???????????????????????????? | | ????????????# #???????????????????????????? | | ????????????# #???????????????????????????? | | ????????????# #???????????????????????????? | | ????????????# #???????????????????????????? | | ????????????# #???????????????????????????? | | ????????????# #???????????????????????????? | | ????????????#####+####???????????????????????????? | | ????????????### ###?######???????????????????? | | ????????????# ; ;;### #???????????????????? | | ????????????# ; /@ #???????????????????? | | ???????????# ; #l #???????????????????? | | ???????????# ; ]] !# #???????????????????? | | ???????????# ;[ ]] #Yg #???????????????????? | | ??????#######;;% # g #???????????????????? | | ??????# """ ;; # #???????????????????? | | ??????# """ ; % + #???????????????????? | | ??????# """ " =% # #???????????????????? | | ??????# # %* ######???????????????????? | | ??????# ! + +???????????????????? | | ??????# ! # #???????????????????? | | ??????######## #???????????????????? | | ?????????????# +???????????????????? | | ?????????????# #???????????????????? | | ?????????????# #######+######+#####? | | ?????????????# " | | ?????????????# T g | | ?????????????+ " | | ?????????????# | | ?????????????# | | ?????????????# ###+#############/##### #?? | | ?????????????# # ==#! ## #?? | | ???????????? #! " " " " =!# " " ## #?? | | ?????????? # " " " " # " " ## #?? | | ???????? # " " " " ?#"" " " + #?? | +----------------------------------------------------+ Best States ------------- Heat Dissipation 34 Energy Generation 21 Energy Capacity 750 Matter Stores 300 Matter Capacity 300 Sight Range 16 Terrain Scan Range 16 Terrain Scan Density 210 ECM Strength 2 Additional Mass Support 9 Armor Coverage 600 Core Shielding 20 Weapon Shielding 66 Evasion (%) 50 Core Analysis 6 Item Schematics ----------------- None Robot Schematics ------------------ None Fabricated ------------ Nothing Alien Tech Used ----------------- None Achievements -------------- Close Call Unlikely Earthworm Challenges ------------ None Game ------ Seed InsulatedTachyonPick Manual? 0 Play Time 01:08:43 Cumulative 14.8 hours Start 2024.04.26 @ 17:00:12 End 2024.04.28 @ 04:44:11 Sessions 5 Manual Loads 0 Difficulty Rogue Special Mode None Game No. 19 Rogue 19 Adventurer 0 Explorer 0 Win Type - Total 0 Types 0/0/0/0/0/0/0/0/0 Lore% 19 Gallery% 19 Achievement% 17 Wizard Run 0 Options --------- Layout 1 ASCII 0 Keyboard 0 Movement Mouse Keybinds 0 Fullscreen 2 Font 24/Crisp Map View 50x35 Zoom Use 0% Tactical HUD 1 Map Filters NONE Filters NONE Steam 1 RUN: 4e0b6f87-9570-45ba-9c3b-e1d3fb206abd